fUST/lending_fUST_20250614
["ID","MTS","AMOUNT","RATE_DAILY","PERIOD"]
[365755212,1749881441454,-500.0,0.00023171,2]
[365755213,1749881441463,-500.0,0.00023171,2]
[365755214,1749881441472,-500.0,0.00023171,2]
[365755215,1749881441483,-500.0,0.00023257,2]
[365755216,1749881441493,-460.0,0.00023287,4]
[365755217,1749881441502,-460.0,0.00023287,4]
[365755218,1749881441513,-460.0,0.00023287,4]
[365755219,1749881441522,-483.88,0.00023287,4]
[365755220,1749881441531,-811.56,0.00023287,4]
[365755221,1749881441542,-460.0,0.00023287,4]
[365755222,1749881441551,-576.03,0.00023287,4]
[365755223,1749881441561,-2958.55,0.00023287,4]
[365755224,1749881441582,-539.06,0.00023287,4]
[365755225,1749881441600,-690.45,0.00023287,4]
[365755226,1749881441609,-565.51,0.00023287,4]
[365755227,1749881441619,-786.24,0.00023287,4]
[365755228,1749881441629,-460.0,0.00023287,4]
[365755229,1749881441639,-460.0,0.00023287,4]
[365755230,1749881441649,-460.0,0.00023287,4]
[365755231,1749881441659,-1011.13,0.00023287,4]
[365755232,1749881441670,-151.0,0.000233,10]
[365755233,1749881441679,-500.0,0.00023363,2]
[365755234,1749881441688,-405.48848497,0.00023392,2]
[365755235,1749881441699,-788.0,0.00023397,2]
[365755236,1749881441710,-2160.0,0.00023447,2]
[365755237,1749881441720,-653.0,0.00023447,2]
[365755238,1749881441731,-364.628,0.00023447,2]
[365755239,1749881441741,-405.0,0.00023447,2]
[365755240,1749881441752,-600.0,0.00023468,2]
[365755241,1749881441762,-788.0,0.00023499,2]
[365755242,1749881441771,-200.0,0.00023554,2]
[365755243,1749881441781,-460.0,0.00023561,4]
[365755244,1749881441792,-182.95,0.00023561,4]
[365755245,1749881441802,-460.0,0.00023561,4]
[365755246,1749881441811,-483.88,0.00023561,4]
[365755247,1749881441821,-811.56,0.00023561,4]
[365755248,1749881441831,-460.0,0.00023561,4]
[365755249,1749881441840,-576.03,0.00023561,4]
[365755250,1749881441850,-2958.55,0.00023561,4]
[365755251,1749881441860,-539.06,0.00023561,4]
[365755252,1749881441869,-690.45,0.00023561,4]
[365755253,1749881441880,-565.51,0.00023561,4]
[365755254,1749881441890,-786.24,0.00023561,4]
[365755255,1749881441900,-460.0,0.00023561,4]
[365755256,1749881441909,-460.0,0.00023561,4]
[365755257,1749881441920,-460.0,0.00023561,4]
[365755258,1749881441929,-1011.13,0.00023561,4]
[365755259,1749881441939,-200.0,0.00023571,2]
[365755260,1749881441948,-151.0,0.000236,6]
[365755261,1749881441958,-1000.0,0.00023608,2]
[365755262,1749881441968,-1000.0,0.00023608,2]
[365755263,1749881441977,-500.0,0.00023629,2]
[365755264,1749881441986,-7756.2,0.00023657,2]
[365755265,1749881441995,-1007.46660414,0.00023665,2]
[365755266,1749881442005,-1000.0,0.00023665,2]
[365755267,1749881442014,-195.12804827,0.00023665,2]
[365755268,1749881442023,-3000.0,0.000237,2]
[365755269,1749881442034,-4492.35,0.000237,7]
[365755270,1749881442044,-788.0,0.00023701,2]
[365755271,1749881442054,-3000.0,0.0002371,2]
[365755272,1749881442063,-1063.24869493,0.00023713,2]
[365755273,1749881442073,-331.18938228,0.00023719,2]
[365755274,1749881442083,-701.86789802,0.00023719,2]
[365755275,1749881442093,-1000.0,0.00023719,2]
[365755276,1749881442102,-3000.0,0.0002372,2]
[365755277,1749881442112,-3000.0,0.0002373,2]
[365755278,1749881442122,-3000.0,0.0002374,2]
[365755279,1749881442131,-3000.0,0.0002375,2]
[365755280,1749881442140,-587.0,0.00023758,2]
[365755281,1749881442149,-3000.0,0.0002376,2]
[365755282,1749881442159,-3000.0,0.0002377,2]
[365755283,1749881442168,-3000.0,0.0002378,2]
[365755284,1749881442177,-150.0,0.00023783,2]
[365755285,1749881442187,-3000.0,0.0002379,2]
[365755286,1749881442196,-501.91821307,0.00023794,9]
[365755287,1749881442205,-500.0,0.00023796,9]
[365755288,1749881442215,-3000.0,0.000238,2]
[365755289,1749881442224,-2023.41,0.000238,2]
[365755290,1749881442234,-1000.0,0.00023805,2]
[365755291,1749881442243,-3000.0,0.0002381,2]
[365755292,1749881442252,-3000.0,0.0002382,2]
[365755293,1749881442262,-150.0,0.00023827,2]
[365755294,1749881442271,-152.552,0.00023827,2]
[365755295,1749881442281,-249.539,0.00023827,2]
[365755297,1749881442291,-250.0,0.00023827,2]
[365755298,1749881442300,-258.421,0.00023827,2]
[365755299,1749881442310,-215.773,0.00023827,2]
[365755300,1749881442321,-964.0,0.00023827,2]
[365755301,1749881442332,-3000.0,0.0002383,2]
[365755302,1749881442341,-160.0,0.00023834,2]
[365755303,1749881442351,-469.57,0.00023835,4]
[365755304,1749881442360,-255.86,0.00023835,4]
[365755305,1749881442371,-483.88,0.00023835,4]
[365755306,1749881442380,-811.56,0.00023835,4]
[365755307,1749881442391,-460.0,0.00023835,4]
[365755308,1749881442400,-576.03,0.00023835,4]
[365755309,1749881442410,-2958.55,0.00023835,4]
[365755310,1749881442420,-539.06,0.00023835,4]
[365755311,1749881442429,-690.45,0.00023835,4]
[365755312,1749881442439,-565.51,0.00023835,4]
[365755313,1749881442448,-786.24,0.00023835,4]
[365755314,1749881442458,-460.0,0.00023835,4]
[365755315,1749881442467,-460.0,0.00023835,4]
[365755316,1749881442477,-460.0,0.00023835,4]
[365755317,1749881442486,-1011.13,0.00023835,4]
[365755318,1749881442495,-3000.0,0.0002384,2]
[365755319,1749881442505,-3000.0,0.0002385,2]
[365755320,1749881442514,-3000.0,0.0002386,2]
[365755321,1749881442524,-3000.0,0.0002387,2]
[365755322,1749881442534,-3000.0,0.0002388,2]
[365755323,1749881442543,-3000.0,0.0002389,2]
[365755324,1749881442552,-3000.0,0.000239,2]
[365755325,1749881442562,-151.0,0.000239,7]
[365755326,1749881442571,-1115.67,0.000239,7]
[365755327,1749881442581,-1153.32995769,0.000239,2]
[365755328,1749881442590,-3000.0,0.0002391,2]
[365755329,1749881442599,-1000.0,0.0002391,2]
[365755330,1749881442609,-3000.0,0.0002392,2]
[365755331,1749881442619,-3000.0,0.0002393,2]
[365755332,1749881442638,-3000.0,0.0002394,2]
[365755333,1749881442655,-3000.0,0.0002395,2]
[365755334,1749881442664,-1319.476089,0.00023951,3]
[365755335,1749881442673,-3000.0,0.0002396,2]
[365755336,1749881442683,-3000.0,0.0002397,2]
[365755337,1749881442692,-3000.0,0.0002398,2]
[365755338,1749881442702,-3000.0,0.0002399,2]
[365755339,1749881442711,-3000.0,0.00024,2]
[365755340,1749881442720,-150.0,0.00024,5]
[365755341,1749881442729,-158.37,0.00024,2]
[365755342,1749881442738,-160.0,0.00024,7]
[365755343,1749881442748,-160.0,0.00024,7]
[365755344,1749881442841,-424.40141186,0.00024,7]
[365755345,1749881442851,-835.41710878,0.00024,7]
[365755346,1749881442860,-229.82479369,0.00024,7]
[365755347,1749881442870,-3000.0,0.0002401,2]
[365755348,1749881442879,-3000.0,0.0002402,2]
[365755349,1749881442888,-3000.0,0.0002403,2]
[365755350,1749881442898,-3000.0,0.0002404,2]
[365755351,1749881442907,-3000.0,0.0002405,2]
[365755352,1749881442917,-3000.0,0.0002406,2]
[365755353,1749881442926,-3000.0,0.0002407,2]
[365755354,1749881442934,-4156.008913,0.0002408,2]
[365755355,1749881442944,-167.63761845,0.000241,2]
[365755356,1749881442953,-405.48848497,0.000241,2]
[365755357,1749881442963,-483.88,0.00024109,4]
[365755358,1749881442972,-811.56,0.00024109,4]
[365755359,1749881442982,-460.0,0.00024109,4]
[365755360,1749881442993,-576.03,0.00024109,4]
[365755361,1749881443002,-2958.55,0.00024109,4]
[365755362,1749881443012,-539.06,0.00024109,4]
[365755363,1749881443022,-690.45,0.00024109,4]
[365755364,1749881443031,-565.51,0.00024109,4]
[365755365,1749881443041,-786.24,0.00024109,4]
[365755366,1749881443050,-460.0,0.00024109,4]
[365755367,1749881443059,-460.0,0.00024109,4]
[365755368,1749881443068,-300.48702511,0.00024109,4]
[365755369,1749881443078,-1011.13,0.00024109,4]
[365755370,1749881443087,-176.9937618,0.00024137,2]
[365755371,1749881443096,-158.8714084,0.00024137,2]
[365755372,1749881443105,-573.7859869,0.00024137,2]
[365755373,1749881443115,-153.0,0.00024137,2]
[365755374,1749881443124,-1635.84310012,0.00024156,2]
[365755375,1749881443134,-1500.0,0.00024156,2]
[365755376,1749881443143,-500.0,0.00024173,2]
[365755377,1749881443153,-150.0,0.00024173,2]
[365755378,1749881443163,-150.0,0.00024173,2]
[365755379,1749881443172,-712.48080632,0.00024177,2]
[365755380,1749881443181,-160.21686064,0.00024199,2]
[365755381,1749881443191,-151.0,0.000242,7]
[365755382,1749881443200,-151.0,0.000242,7]
[365755383,1749881443209,-385.21824,0.000242,7]
[365755384,1749881443219,-385.21824,0.000242,7]
[365755385,1749881443228,-151.0,0.000242,7]
[365755386,1749881443238,-151.0,0.000242,7]
[365755387,1749881443247,-3912.614743,0.000242,2]
[365755388,1749881443256,-3912.614743,0.000242,2]
[365755389,1749881443266,-151.0,0.000242,8]
[365755390,1749881443275,-151.0,0.000242,7]
[365755391,1749881443284,-151.0,0.000242,7]
[365755392,1749881443294,-113459.32,0.000242,7]
[365755393,1749881443304,-479.394482,0.000242,7]
[365755394,1749881443313,-479.394482,0.000242,7]
[365755395,1749881443326,-151.0,0.000242,7]
[365755396,1749881443336,-152.541081,0.000242,7]
[365755397,1749881443345,-151.0,0.000242,7]
[365755398,1749881443355,-213.884029,0.000242,7]
[365755399,1749881443364,-213.884029,0.000242,7]
[365755400,1749881443373,-188.008988,0.000242,7]
[365755401,1749881443382,-188.008988,0.000242,7]
[365755402,1749881443392,-151.0,0.000242,7]
[365755403,1749881443402,-151.0,0.000242,7]
[365755404,1749881443412,-151.0,0.000242,7]
[365755405,1749881443421,-151.0,0.000242,7]
[365755406,1749881443431,-1016.47411252,0.00024213,2]
[365755407,1749881443440,-160.0,0.0002422,5]
[365755408,1749881443450,-215.0738,0.00024291,2]
[365755409,1749881443459,-2200.0,0.00024305,2]
[365755410,1749881443468,-1295.84509687,0.00024353,2]
[365755411,1749881443477,-483.88,0.00024383,4]
[365755412,1749881443487,-811.56,0.00024383,4]
[365755413,1749881443497,-460.0,0.00024383,4]
[365755414,1749881443507,-576.03,0.00024383,4]
[365755415,1749881443516,-2958.55,0.00024383,4]
[365755416,1749881443526,-539.06,0.00024383,4]
[365755417,1749881443535,-690.45,0.00024383,4]
[365755418,1749881443545,-565.51,0.00024383,4]
[365755419,1749881443555,-786.24,0.00024383,4]
[365755420,1749881443565,-369.42805919,0.00024383,4]
[365755421,1749881443574,-460.0,0.00024383,4]
[365755422,1749881443584,-1011.13,0.00024383,4]
[365755423,1749881443594,-1935.20786562,0.000244,2]
[365755424,1749881443604,-2891.9,0.00024413,12]
[365755425,1749881443614,-62260.0432249,0.0002444,7]
[365755426,1749881443624,-73703.25355072,0.0002444,7]
[365755427,1749881443634,-151.0,0.0002444,7]
[365755428,1749881443643,-151.0,0.0002444,7]
[365755429,1749881443652,-216.866885,0.0002444,7]
[365755430,1749881443662,-216.866885,0.0002444,7]
[365755431,1749881443672,-151.0,0.0002444,7]
[365755432,1749881443681,-151.0,0.0002444,7]
[365755433,1749881443690,-160.0,0.0002444,7]
[365755434,1749881443700,-151.0,0.0002444,7]
[365755435,1749881443709,-385.21824,0.0002444,7]
[365755436,1749881443719,-385.21824,0.0002444,7]
[365755437,1749881443728,-151.0,0.0002444,7]
[365755438,1749881443738,-151.0,0.0002444,7]
[365755439,1749881443747,-3912.614743,0.0002444,2]
[365755440,1749881443757,-3912.614743,0.0002444,2]
[365755441,1749881443766,-151.0,0.0002444,7]
[365755442,1749881443776,-151.0,0.0002444,7]
[365755443,1749881443786,-1746.0,0.0002444,3]
[365755444,1749881443795,-151.0,0.0002444,3]
[365755445,1749881443804,-1746.0,0.0002444,3]
[365755446,1749881443814,-151.0,0.0002444,3]
[365755447,1749881443823,-166.0,0.0002444,3]
[365755448,1749881443833,-1746.0,0.0002444,3]
[365755449,1749881443845,-166.0,0.0002444,3]
[365755450,1749881443854,-151.0,0.0002444,3]
[365755451,1749881443863,-1746.0,0.0002444,3]
[365755452,1749881443873,-172.0,0.0002444,3]
[365755453,1749881443882,-151.0,0.0002444,3]
[365755454,1749881443892,-1746.0,0.0002444,3]
[365755455,1749881443902,-151.0,0.0002444,3]
[365755456,1749881443911,-171.0,0.0002444,3]
[365755457,1749881443921,-151.0,0.0002444,3]
[365755458,1749881443931,-1746.0,0.0002444,3]
[365755459,1749881443940,-171.0,0.0002444,3]
[365755460,1749881443951,-243.93217632,0.0002444,3]
[365755461,1749881443960,-1746.0,0.0002444,3]
[365755462,1749881443969,-151.0,0.0002444,3]
[365755463,1749881443978,-1746.0,0.0002444,3]
[365755464,1749881443988,-151.0,0.0002444,3]
[365755465,1749881443997,-1746.0,0.0002444,3]
[365755466,1749881444006,-151.0,0.0002444,3]
[365755467,1749881444015,-1746.0,0.0002444,3]
[365755468,1749881444025,-151.0,0.0002444,3]
[365755469,1749881444034,-1746.0,0.0002444,3]
[365755470,1749881444044,-151.0,0.0002444,3]
[365755471,1749881444054,-1746.0,0.0002444,3]
[365755472,1749881444063,-151.0,0.0002444,3]
[365755473,1749881444073,-1746.0,0.0002444,3]
[365755474,1749881444082,-151.0,0.0002444,3]
[365755475,1749881444092,-151.0,0.0002444,3]
[365755476,1749881444101,-1746.0,0.0002444,3]
[365755477,1749881444110,-151.0,0.0002444,3]
[365755478,1749881444118,-1746.0,0.0002444,3]
[365755479,1749881444128,-151.0,0.0002444,3]
[365755480,1749881444137,-1746.0,0.0002444,3]
[365755481,1749881444146,-1746.0,0.0002444,3]
[365755482,1749881444156,-151.0,0.0002444,3]
[365755483,1749881444165,-151.0,0.0002444,3]
[365755484,1749881444174,-151.0,0.0002444,3]
[365755485,1749881444184,-1746.0,0.0002444,3]
[365755486,1749881444193,-151.0,0.0002444,3]
[365755487,1749881444203,-1746.0,0.0002444,3]
[365755488,1749881444212,-151.0,0.0002444,3]
[365755489,1749881444222,-1746.0,0.0002444,3]
[365755490,1749881444232,-151.0,0.0002444,3]
[365755491,1749881444242,-1746.0,0.0002444,3]
[365755492,1749881444252,-151.0,0.0002444,3]
[365755493,1749881444263,-1746.0,0.0002444,3]
[365755494,1749881444273,-151.0,0.0002444,3]
[365755495,1749881444283,-1746.0,0.0002444,3]
[365755496,1749881444293,-151.0,0.0002444,3]
[365755497,1749881444302,-1746.0,0.0002444,3]
[365755498,1749881444312,-1746.0,0.0002444,3]
[365755499,1749881444324,-1746.0,0.0002444,3]
[365755500,1749881444333,-151.0,0.0002444,3]
[365755501,1749881444343,-1746.0,0.0002444,3]
[365755502,1749881444354,-1746.0,0.0002444,3]
[365755503,1749881444365,-1746.0,0.0002444,3]
[365755504,1749881444374,-788.96256108,0.0002444,3]
[365755505,1749881444384,-317.0,0.0002444,3]
[365755506,1749881444394,-317.0,0.0002444,3]
[365755507,1749881444403,-317.0,0.0002444,3]
[365755508,1749881444413,-317.0,0.0002444,3]
[365755509,1749881444422,-317.0,0.0002444,3]
[365755510,1749881444432,-317.0,0.0002444,3]
[365755511,1749881444441,-317.0,0.0002444,3]
[365755512,1749881444451,-317.0,0.0002444,3]
[365755513,1749881444461,-317.0,0.0002444,3]
[365755514,1749881444470,-317.0,0.0002444,3]
[365755515,1749881444480,-317.0,0.0002444,3]
[365755516,1749881444489,-317.0,0.0002444,3]
[365755517,1749881444499,-317.0,0.0002444,3]
[365755518,1749881444512,-317.0,0.0002444,3]
[365755519,1749881444521,-317.0,0.0002444,3]
[365755520,1749881444530,-317.0,0.0002444,3]
[365755521,1749881444540,-317.0,0.0002444,3]
[365755522,1749881444551,-317.0,0.0002444,3]
[365755523,1749881444560,-317.0,0.0002444,3]
[365755524,1749881444570,-317.0,0.0002444,3]
[365755525,1749881444579,-317.0,0.0002444,3]
[365755526,1749881444588,-317.0,0.0002444,3]
[365755527,1749881444598,-317.0,0.0002444,3]
[365755528,1749881444608,-317.0,0.0002444,3]
[365755529,1749881444617,-317.0,0.0002444,3]
[365755530,1749881444627,-317.0,0.0002444,3]
[365755531,1749881444636,-317.0,0.0002444,3]
[365755532,1749881444645,-317.0,0.0002444,3]
[365755533,1749881444654,-317.0,0.0002444,3]
[365755534,1749881444664,-317.0,0.0002444,3]
[365755535,1749881444673,-317.0,0.0002444,3]
[365755536,1749881444683,-317.0,0.0002444,3]
[365755537,1749881444692,-317.0,0.0002444,3]
[365755538,1749881444701,-317.0,0.0002444,3]
[365755539,1749881444710,-317.0,0.0002444,3]
[365755540,1749881444720,-317.0,0.0002444,3]
[365755541,1749881444730,-317.0,0.0002444,3]
[365755542,1749881444739,-317.0,0.0002444,3]
[365755543,1749881444748,-317.0,0.0002444,3]
[365755544,1749881444758,-288.57454196,0.0002444,3]
[365755545,1749881444768,-479.394482,0.0002444,7]
[365755546,1749881444777,-479.394482,0.0002444,7]
[365755547,1749881444786,-151.0,0.0002444,7]
[365755548,1749881444796,-151.0,0.0002444,7]
[365755549,1749881444881,-151.0,0.0002444,7]
[365755550,1749881444891,-151.0,0.0002444,7]
[365755551,1749881444900,-213.884029,0.0002444,7]
[365755552,1749881444909,-213.884029,0.0002444,7]
[365755553,1749881444919,-188.008988,0.0002444,7]
[365755554,1749881444927,-188.008988,0.0002444,7]
[365755555,1749881444937,-151.0,0.0002444,7]
[365755556,1749881444946,-151.0,0.0002444,7]
[365755557,1749881444956,-151.0,0.0002444,7]
[365755558,1749881444965,-201.0,0.0002444,10]
[365755559,1749881444974,-151.0,0.0002444,7]
[365755560,1749881444983,-151.0,0.00024446,7]
[365755561,1749881444992,-152.027995,0.00024446,7]
[365755562,1749881445001,-151.0,0.00024446,7]
[365755563,1749881445011,-151.0,0.00024446,7]
[365755564,1749881445020,-151.0,0.00024446,7]
[365755565,1749881445030,-315.814954,0.00024446,7]
[365755566,1749881445039,-151.0,0.00024446,7]
[365755567,1749881445048,-151.0,0.00024446,7]
[365755568,1749881445058,-315.814954,0.00024446,7]
[365755569,1749881445067,-151.0,0.00024446,7]
[365755570,1749881445076,-151.4935,0.00024446,7]
[365755571,1749881445085,-151.0,0.00024446,7]
[365755572,1749881445095,-216.866885,0.00024446,7]
[365755573,1749881445105,-216.866885,0.00024446,7]
[365755574,1749881445115,-151.0,0.00024446,7]
[365755575,1749881445123,-151.0,0.00024446,7]
[365755576,1749881445133,-1935.20786553,0.00024451,2]
[365755577,1749881445143,-5028.2397836,0.00024454,2]
[365755578,1749881445152,-5000.0,0.00024454,2]
[365755579,1749881445162,-5000.0,0.00024454,2]
[365755580,1749881445171,-5000.0,0.00024454,2]
[365755581,1749881445180,-5000.0,0.00024454,2]
[365755582,1749881445189,-15355.88142206,0.00024457,7]
[365755583,1749881445199,-1003.66755232,0.00024458,2]
[365755584,1749881445209,-20208.78077843,0.00024461,7]
[365755585,1749881445218,-221832.03699735,0.00024461,7]
[365755586,1749881445227,-151.909552,0.00024461,7]
[365755587,1749881445237,-151.0,0.00024461,7]
[365755588,1749881445246,-161.069961,0.00024461,7]
[365755589,1749881445256,-151.0,0.00024461,7]
[365755590,1749881445265,-151.0,0.00024461,7]
[365755591,1749881445275,-151.0,0.00024461,7]
[365755592,1749881445284,-151.0,0.00024461,7]
[365755593,1749881445294,-151.0,0.00024461,7]
[365755594,1749881445304,-213.884029,0.00024461,7]
[365755595,1749881445314,-213.884029,0.00024461,7]
[365755596,1749881445326,-188.008988,0.00024461,7]
[365755597,1749881445336,-188.008988,0.00024461,7]
[365755598,1749881445345,-151.0,0.00024461,7]
[365755599,1749881445356,-151.0,0.00024461,7]
[365755600,1749881445366,-151.0,0.00024461,7]
[365755601,1749881445375,-166.582329,0.00024461,7]
[365755602,1749881445385,-442.46825142,0.00024473,2]
[365755603,1749881445394,-500.79880931,0.00024473,2]
[365755604,1749881445404,-500.0,0.00024473,2]
[365755605,1749881445413,-242.91572388,0.00024473,2]
[365755606,1749881445423,-500.0,0.00024473,2]
[365755607,1749881445432,-500.76973816,0.00024473,2]
[365755608,1749881445442,-600.0,0.00024473,2]
[365755609,1749881445452,-500.0,0.00024473,2]
[365755610,1749881445462,-500.0,0.00024473,2]
[365755611,1749881445471,-500.0,0.00024473,2]
[365755612,1749881445481,-501.54253158,0.00024473,2]
[365755613,1749881445490,-509.52386993,0.00024473,2]
[365755614,1749881445500,-500.0,0.00024473,2]
[365755615,1749881445509,-293.0,0.000245,30]
[365755616,1749881445519,-67044.27507475,0.000245,2]
[365755617,1749881445615,-5781.87,0.000245,2]
[365755618,1749881445628,-20941.64253377,0.000245,2]
[365755619,1749881445640,-4210.71868344,0.000245,2]
[365755620,1749881445670,-2697.28370804,0.000245,2]
[365755621,1749881445680,-152.103042,0.000245,7]
[365755622,1749881445695,-111.13942517,0.000245,7]
[365755623,1749881445706,-40.55749683,0.000245,7]
[365755624,1749881445715,-152.524667,0.000245,7]
[365755625,1749881445725,-151.0,0.000245,7]
[365755626,1749881445734,-266.687045,0.000245,7]
[365755627,1749881445743,-217.618084,0.000245,7]
[365755628,1749881445753,-217.618084,0.000245,7]
[365755629,1749881445762,-151.0,0.000245,7]
[365755630,1749881445772,-151.0,0.000245,7]
[365755631,1749881445782,-218.784479,0.000245,7]
[365755632,1749881445792,-218.784479,0.000245,7]
[365755633,1749881445802,-151.0,0.000245,7]
[365755634,1749881445811,-151.0,0.000245,7]
[365755635,1749881445820,-151.0,0.000245,7]
[365755636,1749881445829,-315.814954,0.000245,7]
[365755637,1749881445839,-183.718285,0.000245,7]
[365755638,1749881445848,-315.814954,0.000245,7]
[365755639,1749881445857,-148.82992601,0.000245,7]
[365755640,1749881445989,-460.0,0.00021095,4]
[365755641,1749881446001,-424.40141186,0.00022578,2]
[365755642,1749881446011,-9.50581299,0.000245,7]
[365755643,1749881446020,-165.534026,0.000245,7]
[365755644,1749881446029,-385.21824,0.000245,7]
[365755645,1749881446039,-126.87550108,0.000245,7]
[365755667,1749881637137,160.069131,0.00013699,2]
[365755672,1749881771285,5000.0,0.0002,2]
[365755673,1749881818276,61.061869,0.0002,3]
[365755674,1749881818300,98.938131,0.0002,3]
[365755675,1749881896619,759.561107,0.00019875,2]
[365755677,1749882164261,4362.631762,0.00019592,2]
[365755678,1749882164283,1000.2273414,0.00019592,2]
[365755681,1749882244428,1390.86270449,0.00024958,60]
[365755682,1749882292779,636.7,0.00024658,120]
[365755683,1749882313131,548.99667636,0.0002,2]
[365755685,1749882428097,-321.2999611,0.0002007,2]
[365755686,1749882428119,-300.0,0.00020189,2]
[365755687,1749882428140,-300.0,0.00020189,2]
[365755688,1749882428161,-300.0,0.00020189,2]
[365755689,1749882428182,-1304.53619315,0.0002019,2]
[365755690,1749882438087,-169.90277965,0.0002019,2]
[365755691,1749882449122,-2864.19920591,0.0002019,2]
[365755692,1749882476547,559.6808788,0.00019886,2]
[365755693,1749882489334,2071.95920722,0.0002,2]
[365755694,1749882494925,1040.26689622,0.000125,2]
[365755695,1749882494949,5221.131,0.000125,2]
[365755696,1749882494972,5051.0517445,0.000125,2]
[365755697,1749882513721,170.0792555,0.00017,2]
[365755698,1749882513747,4591.82265098,0.00017,2]
[365755702,1749882516639,629.30834902,0.00018,2]
[365755703,1749882516662,5221.131,0.00018,2]
[365755704,1749882516684,5221.131,0.00018,2]
[365755705,1749882516706,3827.05509494,0.00018,2]
[365755706,1749882518070,577.13204401,0.000149,2]
[365755707,1749882518795,816.94386105,0.00018,2]
[365755708,1749882518819,5221.131,0.00018,2]
[365755709,1749882518842,5221.131,0.00018,2]
[365755710,1749882518865,5221.131,0.00018,2]
[365755711,1749882518888,2548.92457692,0.00018,2]
[365755712,1749882520117,468.582328,0.0002,120]
[365755713,1749882521725,2672.20642308,0.00015,2]
[365755714,1749882521750,707.76866432,0.00015,2]
[365755715,1749882533630,4513.36233568,0.0002,2]
[365755716,1749882533655,486.63766432,0.0002,2]
[365755717,1749882536332,-300.0,0.00020189,2]
[365755718,1749882536354,-20561.36182129,0.0002019,2]
[365755719,1749882536377,-232.05685996,0.00020462,2]
[365755720,1749882536401,-164.516,0.00020466,2]
[365755721,1749882536425,-1878.53,0.00020526,2]
[365755722,1749882536446,-382.90611729,0.00020604,2]
[365755723,1749882536466,-2486.6130242,0.00020646,2]
[365755724,1749882536486,-388.6956111,0.00020704,2]
[365755725,1749882536506,-436.87018674,0.00020995,2]
[365755726,1749882536526,-245.76504045,0.00021073,2]
[365755727,1749882536546,-500.0,0.00021073,2]
[365755728,1749882536566,-629.4153094,0.00021073,2]
[365755729,1749882536587,-500.0,0.00021073,2]
[365755730,1749882536608,-500.0,0.00021073,2]
[365755731,1749882536628,-501.0127259,0.00021073,2]
[365755732,1749882536649,-500.0,0.00021073,2]
[365755733,1749882536672,-500.0,0.00021073,2]
[365755734,1749882536692,-500.0,0.00021073,2]
[365755735,1749882536713,-505.15160828,0.00021073,2]
[365755736,1749882536735,-500.0,0.00021073,2]
[365755737,1749882536754,-500.0,0.00021073,2]
[365755738,1749882536785,-840.33,0.00021085,3]
[365755739,1749882536809,-560.2,0.00021085,3]
[365755740,1749882536830,-200.0,0.00021094,2]
[365755741,1749882536852,-316.49525861,0.00021094,2]
[365755742,1749882536874,-160.0,0.00021094,2]
[365755743,1749882536898,-500.0,0.00021094,2]
[365755744,1749882536921,-497.52985396,0.00021094,2]